Cogmind - Beta 16 @@@ ROGUE MODE // 2026.01.20 @ 12:02:09 Player: luckinvolved Result: Destroyed by V7-JI2(j) with Overtuned Pulse Rifle Performance ------------- Evolutions (0) 0 Regions Visited (3) 600 Robots Destroyed (6) 30 Value Destroyed (191) 191 Prototype IDs (12) 240 Alien Tech Used (0) 0 Bonus (800) 800 TOTAL SCORE: 1861 Bonus ------- Registered with UFD 300 Met Optimus in HQ 500 Cogmind --------- Core Integrity 0/250 Matter 300/300 Energy 100/100 System Corruption 1% Temperature Hot (226) Movement Rolling (115) Ox1 Location -7/Scraptown Parts ------- > --- POWER (1) -------- (None) > --- PROPULSION (2) --- Compact Wheel > --- UTILITY (2) ------ Large Storage Unit A0-MCA's Component Scanner > --- WEAPON (2) ------- (None) > --- INVENTORY (15) --- Improved Deuterium Engine Overtuned Treads Wheel Improved Cooling System Improved Signal Interpreter 0b10 Decoder Chip [Scout] Makeshift Salvage Targeting Computer Energy Filter Focal Shield Improved Shield Generator Makeshift Hacking Suite CPS Tube (2) Powered Hammer Peak State ------------ > --- POWER ------------ Improved Deuterium Engine > --- PROPULSION ------- Light Treads Overtuned Treads > --- UTILITY ---------- Large Storage Unit A0-MCA's Component Scanner > --- WEAPON ----------- Arc Projector Heavy Laser > --- INVENTORY -------- Improved Deuterium Engine Wheel Compact Wheel Improved Cooling System Improved Signal Interpreter 0b10 Decoder Chip [Scout] Makeshift Salvage Targeting Computer Energy Filter Focal Shield Improved Shield Generator Makeshift Hacking Suite Grenade Launcher CPS Tube CPS Tube Powered Hammer [Rating: 31] Favorites ----------- Power Light Deuterium Engine Engine Light Deuterium Engine Propulsion Light Treads Treads Light Treads Wheel Compact Wheel Utility Small Storage Unit Device Improved Shield Generator Storage Small Storage Unit Processor A0-MCA's Component Scanner Weapon Subdweller Machine Gun Energy Gun Small Laser Ballistic Gun Subdweller Machine Gun Launcher Grenade Launcher Special Weapon CPS Tube Build | -11 -10 -10 -7 ------- Run | Yrd Mat Sub Scr Slots Evolved . | . . . . Power . | . . . . Propulsion . | . . . . Utility . | . . . . Weapon . | . . . . Parts Attached 23 | 7 . 1 15 Power 3 | 1 . . 2 Engine 3 | 1 . . 2 Core . | . . . . Reactor . | . . . . Propulsion 6 | 2 . . 4 Treads 4 | 2 . . 2 Leg . | . . . . Wheel 2 | . . . 2 Hover . | . . . . Flight . | . . . . Utility 4 | 1 . . 3 Device 1 | . . . 1 Storage 2 | 1 . . 1 Processor 1 | . . . 1 Hackware . | . . . . Protection . | . . . . Artifact . | . . . . Weapon 10 | 3 . 1 6 Energy Gun 5 | 2 . . 3 Energy Cannon . | . . . . Ballistic Gun 3 | 1 . 1 1 Ballistic Cannon . | . . . . Launcher 1 | . . . 1 Special Weapon 1 | . . . 1 Impact Weapon . | . . . . Slashing Weapon . | . . . . Piercing Weapon . | . . . . Special Melee Weapon . | . . . . Unidentified Prototypes . | . . . . Parts Lost 5 | . . . 5 Power 1 | . . . 1 Propulsion 1 | . . . 1 Utility . | . . . . Weapon 3 | . . . 3 Highest Loss Streak 5 | . . . 5 To Critical Strikes . | . . . . Average Backups 10 | 3 4 5 11 Power . | . 1 1 . Propulsion 1 | 1 2 2 2 Utility 2 | . . . 3 Weapon 3 | . 1 2 3 Tool/Special . | . . . . Unused Backups 17 | 1 . . 16 Power 3 | . . . 3 Propulsion 1 | 1 . . . Utility 11 | . . . 11 Weapon 1 | . . . 1 Tool/Special 1 | . . . 1 Average Slot Usage (%) 93 | . 85 85 95 Engine 14 | . 14 14 14 Treads 16 | . 28 28 14 Wheel 11 | . . . 13 Device 5 | . . . 6 Storage 14 | . 14 14 14 Processor 2 | . . . 3 Energy Gun 3 | . 14 11 1 Ballistic Gun 24 | . 14 16 25 Peak Build Rating 31 | 6 6 7 31 Average Rating 14 | 4 6 6 16 On Entrance 4 | . 6 6 7 Avg Prop Armor Cover (%) 11 | . . . 11 Naked Turns . | . . . . Heaviest Build 38 | 10 10 13 38 Greatest Support 40 | 40 40 40 40 Greatest Overweight (x) 1 | . . . 1 Average Overweight (x) . | . . . . Largest Inventory Capacity 15 | 8 8 8 15 Average Capacity 11 | 6 8 8 12 Most Carried 15 | 5 5 6 15 Average Carried 10 | 3 4 5 11 Final Capacity 15 | 8 8 8 15 Final Carried 13 | 4 5 6 13 Class Distribution -------------------- 100% | Mutant Dominant Class ---------------- Mutant | -10/Materials Mutant | -10/Subcaves Mutant | -7/Scraptown Resources | -11 -10 -10 -7 ----------- Run | Yrd Mat Sub Scr Matter Collected 498 | 280 . . 218 Remotely . | . . . . Salvage Created 298 | 80 . . 218 Parts 7 | 3 . . 4 Haulers Intercepted . | . . . . Recyclers Shooed . | . . . . Parts Field Recycled . | . . . . Retrieved Matter . | . . . . Parts Self-Destructed . | . . . . Prevented . | . . . . Parts Restored . | . . . . Kills | -11 -10 -10 -7 ------- Run | Yrd Mat Sub Scr Combat Hostiles Destroyed 4 | . . . 4 Guns 3 | . . . 3 AOE 1 | . . . 1 Classes Destroyed 4 | 2 . . 2 Tunneler 1 | 1 . . . Recycler 1 | 1 . . . Guru 2 | . . . 2 Scrapper 2 | . . . 2 Best Kill Streak 2 | 2 . . 2 Combat Bots Only 2 | . . . 2 Max Kills in Single Turn 1 | 1 . . 1 Gunslinging . | . . . . Exploded 1 | . . . 1 Melee . | . . . . Uniques/NPCs Destroyed . | . . . . Combat | -11 -10 -10 -7 -------- Run | Yrd Mat Sub Scr Hostile Shots Fired 59 | . 3 . 56 Missed 20 | . 2 . 18 Hits 39 | . 1 . 38 Melee 5 | . . . 5 Projectile 34 | . 1 . 33 Critical Strikes 4 | . . . 4 Damage Taken 845 | . 10 . 835 Core 263 | . 10 . 253 Absorbed by Shields . | . . . . Regen/Repaired (Parts) 302 | . . . 302 Core Remaining (%) 100 | 100 . . . Volleys Fired 22 | 10 . . 12 Largest 2 | 2 . . 2 Hottest 124 | 60 . . 124 Shots Fired 43 | 20 . . 23 Gun 38 | 20 . . 18 Cannon . | . . . . Launcher 3 | . . . 3 Special 2 | . . . 2 Kinetic 16 | 10 . . 6 Thermal 18 | 10 . . 8 Explosive 3 | . . . 3 Electromagnetic 4 | . . . 4 Robot Hit Streak 9 | 9 . . 4 Robot Miss Streak 3 | 3 . . 2 Penetration Max . | . . . . Secondary Targets . | . . . . Shots Hit Robots 29 | 15 . . 14 Core Hits 14 | 4 . . 10 Critical Kills . | . . . . Critical Parts Destroyed . | . . . . Critical Strikes . | . . . . Melee Attacks . | . . . . Impact . | . . . . Slashing . | . . . . Piercing . | . . . . Sneak Attacks . | . . . . Combat Hostiles . | . . . . Follow-up Attacks . | . . . . Damage Inflicted 545 | 140 . . 405 Guns 321 | 140 . . 181 Cannons . | . . . . Explosions 224 | . . . 224 Melee . | . . . . Ramming . | . . . . Kinetic 151 | 76 . . 75 Thermal 159 | 64 . . 95 Explosive 224 | . . . 224 Electromagnetic 11 | . . . 11 Impact . | . . . . Slashing . | . . . . Piercing . | . . . . Highest Corruption 1 | . . . 1 Average Corruption 1 | . . . 1 Corruption Purged . | . . . . Corruption Blocked . | . . . . Overload Shots . | . . . . Overflow Damage . | . . . . Projectiles . | . . . . Explosions . | . . . . Melee . | . . . . Knockbacks . | . . . . Impact . | . . . . Kinetic . | . . . . Secondary . | . . . . Self-Inflicted Damage 47 | . . . 47 Shots 2 | . . . 2 Rammed . | . . . . Targets Rammed . | . . . . Kicked . | . . . . Crushed . | . . . . Highest Temperature 288 | 60 . . 288 Average Temperature 82 | 26 . . 110 Received Heat Transfer 307 | . 6 . 301 Effects 3 | . . . 3 Interference 3 | . . . 3 Siege Activations . | . . . . Martial Activations . | . . . . Shielding Activations . | . . . . Robots Disrupted . | . . . . Combat Hostiles . | . . . . Robots Corrupted . | . . . . Combat Hostiles . | . . . . Parts Fried . | . . . . Impact Corruptions . | . . . . Robots Melted . | . . . . Combat Hostiles . | . . . . Parts Melted 1 | . . . 1 Heat Transferred 287 | 150 . . 137 Parts Sabotaged . | . . . . Parts Stolen . | . . . . Parts Stripped . | . . . . Power Chain Reactions . | . . . . Alert | -11 -10 -10 -7 ------- Run | Yrd Mat Sub Scr Maximum Alert Level . | . . . . Low Security (%) 100 | 100 100 . . Level 1 . | . . . . Level 2 . | . . . . Level 3 . | . . . . Level 4 . | . . . . Level 5 . | . . . . High Security . | . . . . Max Security . | . . . . Peak Influence 10 | 10 4 . . Initial . | . . . . Average . | . . . . Influence Increases 14 | 10 4 . . Destroy 0b10 Robot/NC 10 | 10 . . . Successful Hack 4 | . 4 . . Influence Decreases 14 | 10 4 . . Time Decay 14 | 10 4 . . Squads Dispatched 1 | . 1 . . Investigation 1 | . 1 . . Extermination . | . . . . Reinforcement . | . . . . Assault . | . . . . Garrison . | . . . . Intercept . | . . . . Searches Triggered . | . . . . Construction Impeded . | . . . . Haulers Reinforced . | . . . . Active Scanning Responses . | . . . . Cargo Convoy Interrupts . | . . . . Stealth | -11 -10 -10 -7 --------- Run | Yrd Mat Sub Scr Distress Signals . | . . . . Communications Jammed . | . . . . Distress Signals . | . . . . Times Spotted 20 | . 4 . 16 Peak Tracking Total 8 | . 4 . 8 Tactical Retreats . | . . . . Traps | -11 -10 -10 -7 ------- Run | Yrd Mat Sub Scr Traps Triggered 1 | . 1 . . Indirectly . | . . . . Trap Hack Attempts . | . . . . Triggered . | . . . . Disarmed . | . . . . Reprogrammed . | . . . . Reused . | . . . . Traps Extracted . | . . . . Installed . | . . . . Triggered . | . . . . Machines | -11 -10 -10 -7 ---------- Run | Yrd Mat Sub Scr Machines Disabled 1 | . . . 1 Max in Single Turn 1 | . . . 1 Machines Repaired . | . . . . Machines Dismantled . | . . . . Machines Sabotaged . | . . . . Overloaded Fab Kills . | . . . . Hacking | -11 -10 -10 -7 --------- Run | Yrd Mat Sub Scr Machines Accessed 9 | . 2 . 7 Terminals 2 | . 2 . . Fabricators . | . . . . Repair Stations . | . . . . Recycling Units . | . . . . Scanalyzers . | . . . . Garrison Access . | . . . . Total Hacks 36 | . 9 . 27 Successful 30 | . 3 . 27 Failed 6 | . 6 . . Catastrophic 1 | . 1 . . Database Lockouts . | . . . . Manual 11 | . 9 . 2 Terminals 9 | . 9 . . Fabricators . | . . . . Repair Stations . | . . . . Recycling Units . | . . . . Scanalyzers . | . . . . Garrison Access . | . . . . Terminal Hacks 28 | . 1 . 27 Record 27 | . . . 27 Terminal Index 1 | . 1 . . Fabricator Hacks . | . . . . Repair Station Hacks . | . . . . Recycling Unit Hacks . | . . . . Scanalyzer . | . . . . Garrison Access Hacks . | . . . . Unauthorized Hacks 2 | . 2 . . Terminals 2 | . 2 . . Botnet 2 | . 2 . . Fabricators . | . . . . Repair Stations . | . . . . Recycling Units . | . . . . Scanalyzers . | . . . . Garrison Access . | . . . . Data Cores Recovered . | . . . . Used . | . . . . Hacking Detections 2 | . 2 . . Full Trace Events 1 | . 1 . . Feedback Events . | . . . . Feedback Blocked . | . . . . Robot Schematics Acquired . | . . . . Robots Built . | . . . . Authchips . | . . . . Time . | . . . . Total Robot Build Rating . | . . . . Part Schematics Acquired . | . . . . Parts Built . | . . . . Authchips . | . . . . Time . | . . . . Total Part Build Rating . | . . . . Part Studies Acquired . | . . . . Parts Repaired . | . . . . Time . | . . . . Parts Recycled . | . . . . Recycled Matter . | . . . . Retrieved Matter . | . . . . Retrieved Components . | . . . . Parts Scanalyzed . | . . . . Part Schematics Acquired . | . . . . Parts Damaged . | . . . . Bothacking | -11 -10 -10 -7 ------------ Run | Yrd Mat Sub Scr Used RIF Installer . | . . . . Robots Hacked . | . . . . Non-combat . | . . . . Combat . | . . . . Robot Hacks Applied . | . . . . Relay Couplers Released . | . . . . Fabnet Peak Effective % . | . . . . Robots Rewired . | . . . . Allies Hacked . | . . . . Hacks Repelled . | . . . . Allies | -11 -10 -10 -7 -------- Run | Yrd Mat Sub Scr Total Allies . | . . . . Largest Group . | . . . . Highest-Rated Group . | . . . . Highest-Rated Ally . | . . . . Total Orders . | . . . . Ally Attacks . | . . . . Total Damage . | . . . . Kills . | . . . . Allies Corrupted . | . . . . Allies Melted 5 | . . . 5 Intel | -11 -10 -10 -7 ------- Run | Yrd Mat Sub Scr Active Infowar (turns) . | . . . . Robot Analysis Total . | . . . . Derelict Logs Recovered 1 | . . . 1 Drone Launches . | . . . . Drone Recoveries . | . . . . Exploration | -11 -10 -10 -7 ------------- Run | Yrd Mat Sub Scr Turns Passed 3134 | 125 267 239 2503 Spaces Moved 2140 | 51 81 148 1860 Core 5 | 5 . . . Treads 1005 | 46 81 148 730 Legs . | . . . . Wheels 1130 | . . . 1130 Hover . | . . . . Flight . | . . . . Fastest Speed 50 | 50 160 160 105 Average Speed 131 | 149 160 160 127 Slowest Speed 240 | 160 160 160 240 Overloaded Moves . | . . . . Propulsion Burnouts . | . . . . Robots Hopped . | . . . . Potential Cave-ins . | . . . . Cave-ins Triggered . | . . . . Exploration Rate (%) 29 | 4 11 12 90 Regions Visited 3 Branch Regions 2 Pre-discovered Areas . | . . . . Known Exits Taken . | . . . . Unknown Exits Taken 3 | 1 1 1 . Scrap Searched 2 | . . . 2 Spaces Dug . | . . . . Terrain Destroyed 26 | . . . 26 Melee . | . . . . Projectile . | . . . . AOE 26 | . . . 26 Terrain Rammed . | . . . . Walls Destroyed . | . . . . Machines Disabled . | . . . . Actions | -11 -10 -10 -7 --------- Run | Yrd Mat Sub Scr Total 2422 | 79 219 149 1975 Wait 150 | 6 138 . 6 Move 2137 | 50 80 147 1860 Hop . | . . . . Pick Up 30 | 5 1 . 24 Fast Attach 8 | 6 . . 2 Attach 6 | . . . 6 Detach 2 | . . . 2 Swap 12 | 1 . 2 9 Drop 20 | 1 . . 19 Fire 22 | 10 . . 12 Melee . | . . . . Ram . | . . . . Kick . | . . . . Crush . | . . . . Escape Stasis . | . . . . Rewire 35 | . . . 35 Trap . | . . . . Miscellaneous . | . . . . Route ------- -11/Scrapyard -10/Materials -10/Subcaves -7/Scraptown (discovered 2 exits: [*Fac x2]) History --------- Turn | Location | Event 36 | -11/Scrapyard | Discovered new exit (range 16) 126 | -11/Scrapyard | Entered Materials 253 | -10/Materials | Discovered new exit (range 4) 317 | -10/Materials | Build established: Mutant 393 | -10/Materials | Entered Subcaves 394 | -10/Subcaves | Approached by a straggling Scientist 573 | -10/Subcaves | Shifting Twisted Machinery released Sub. Machine Gun 616 | -10/Subcaves | Scientist uncovered a shortcut to Scraptown 632 | -10/Subcaves | Entered Scraptown 1113 | -7/Scraptown | Heard Great Nut preacher, LISTEN AND RECITE! 1215 | -7/Scraptown | Discovered new exit (range 5) 1369 | -7/Scraptown | Scanned Subdweller tech in exchange for log data 1417 | -7/Scraptown | Visited Cyclists 1476 | -7/Scraptown | Visited Red Mages 1544 | -7/Scraptown | Found Relay Coupler [Proto] 1593 | -7/Scraptown | Visited Fellowship of the Rings 1638 | -7/Scraptown | Visited Awakened 1690 | -7/Scraptown | Visited Junk Repository 2099 | -7/Scraptown | Visited UFD Registry 2099 | -7/Scraptown | Registered with UFD as "Protoshaft" 2164 | -7/Scraptown | Visited CR-KLE's Repair Center 2172 | -7/Scraptown | CR-KLE repaired 4 parts 2185 | -7/Scraptown | Visited Shadow of the Wyrm 2218 | -7/Scraptown | Entered Cyclist Reading Room 2315 | -7/Scraptown | Visited Junk Repository 2419 | -7/Scraptown | Discovered new exit (range 3) 2516 | -7/Scraptown | Visited A0-MCA Data Center 2525 | -7/Scraptown | Given a B- rating by A0-MCA 2536 | -7/Scraptown | Found A0-MCA's Component Scanner 2557 | -7/Scraptown | Visited Scrapoid Research Area 2622 | -7/Scraptown | Visited Scrapoid Pod Storage 2663 | -7/Scraptown | Met Optimus 2663 | -7/Scraptown | Accepted into 0bPrime 2740 | -7/Scraptown | Visited Scrap Suit Storage 2827 | -7/Scraptown | Civil war broke out across Scraptown 2946 | -7/Scraptown | Visited Infowarlord's Domain 3115 | -7/Scraptown | Attached CPS modules to CX-DEL(p). 3118 | -7/Scraptown | Attached CPS modules to CX-DEL(p). 3124 | -7/Scraptown | Lost 11 allies 3129 | -7/Scraptown | Core integrity fell below 50% 3134 | -7/Scraptown | Core integrity fell below 20% 3135 | -7/Scraptown | Destroyed by V7-JI2(j) with Overtuned Pulse Rifle Last Messages --------------- 03109_ V7-JI2(j): "Down with Optimus!" 03113_ Arc Projector destroyed. 03115_ CPS modules attach to CX-DEL(p). 03118_ CPS Tube expended. 03118_ CPS modules attach to CX-DEL(p). 03122_ CPS modules swiftly deploy to protect CX-DEL(p) components. 03122_ CX-DEL(p) destroyed. [Achievement: Plot Armor] 03125_ Q9-4ZD(j) destroyed. 03125_ Critical hit (Impale). 03126_ VG-TZM(j) cannibalizes Lgt. Ion Engine to repair Lgt. Deuterium Engine. 03127_ Hvy. Laser destroyed. 03130_ V7-JI2(j) cannibalizes Aluminum Leg to repair Ovr. Titanium Leg. 03130_ Grenade Launcher destroyed. 03132_ Imp. Deuterium Engine destroyed. 03132_ Critical hit (Burn: +50). 03132_ Critical hit (Impale). 03133_ Lgt. Treads destroyed. 03133_ Acquired 40 matter. Map ----- +----------------------------------------------------+ | ?????????????????????????????????????????????????? | | ?????????????????????????????????????????????????? | | ?????????????????????????????????????????????????? | | ?????????????????????????????????????????????????? | | ?????????????????????????????????????????????????? | | ?????????????????????????????????????????????????? | | ?????????????????????????????????????????????????? | | ?????????????????????????????????????????????????? | | ?????????????????????????????????????????????????? | | ?????????????????????????????????????????????????? | | ?????????????????????????????????#####???????????? | | ?????????????????????????#???????#"""#???????????? | | ??###################???# ##?????#" "#???????????? | | ?#"""##"""##""|##"""#??## !#####?# < #???????????? | | ?#"" ##""!##"" ##!!"###=[%%! j ### ##??????????? | | ?#"" !%!!% g!% #??????????? | | ?# *=!*[ j #??????????? | | ?#######################%==j #########??????????? | | ??????????????????????##!=h! #???????????????????? | | ?????????????????????## [=% #???????????????????? | | ?????????????????????# [j% ########????????????? | | ??????????????????????# !% """""""""#???????????? | | ??????????????????????# xj*"""""""""#???????????? | | ??????????????????????# == """""""""#???????????? | | ??????????????????????#; %* """""""""#???????????? | | ???????????????????# ##@%%""" """#???????????? | | ???????????????????# ?##%*#""" """#???????????? | | ??????????????#???= =??#!!!;""" !"!"#???????????? | | ??????????????# !%????#*[=;"""" """#???????????? | | ??????????????# ?????#;!!;" " """#???????????? | | ??????????????# ????#;%=#"!* #???????????? | | ??????????????#??#" ???##[=##%########???????????? | | ??????????????####" #####!!=!=###############????? | | ??????????""""""""%=""""=[%**= ## """ "#????? | | ????????? =!*! *!*!!= "## """"" ""#????? | | ???? ? !%! !!=! ## """ "#????? | | ??? [= !%= "## = ""#????? | | ??? = =%!* ##! "#????? | | ?? !%* !!*%!%*% ! #????? | | ??""""""??"""""""""""""""%!!*==#* """ #????? | | ??""""""??????"""""""""""== =% ## " """"" #????? | | ##### ######???#######""%!!= ## """ """ #????? | | ##????????#""==%!! ##############????? | | X"#????????#"" !==%"##"""""#??????????? | | "" !" ##????????#"" =!*"## "#??????????? | | ""*==*" X*####???###""=! !!"## "#??????????? | | "!=*%!! [%!=!! ####*#""%! =%"## "#??????????? | | !%=%! !!=!= = ! !!=*=!=!* !"#??????????? | | *==%= =%[!=[%=[!![%"## "#??????????? | | " #!%[##%##!# **%*=!!## "#??????????? | +----------------------------------------------------+ Best States ------------- Heat Dissipation 25 Energy Generation 16 Energy Capacity 290 Matter Stores 300 Matter Capacity 300 Sight Range 16 Terrain Scan Density 10 Evasion (%) 40 Recoil Reduction 2 Item Schematics ----------------- None Robot Schematics ------------------ None Fabricated ------------ Nothing Repaired ---------- Nothing Studied --------- None Alien Tech Used ----------------- None Achievements -------------- Bob, First Of His Name Civilization 2243 Link The Feds Nice Directions, Buddy Plot Armor Wiki Contributor Challenges ------------ None Game ------ Seed StrikeWeaponBay Manual? 0 Play Time 00:49:10 Cumulative 115.0 hours Start 2026.01.19 @ 18:36:29 End 2026.01.20 @ 12:02:09 Sessions 2 Manual Loads 0 Difficulty Rogue Special Mode None Game No. 155 Rogue 150 Adventurer 5 Explorer 0 Win Type - Total 3 Types 2/0/0/1/0/0/0/0/0/0 Lore% 34 Gallery% 56 Achievement% 33 Wizard Run 0 Options --------- Layout 0 ASCII 0 Keyboard 1 Movement Vi Keybinds 0 Fullscreen 2 Font 24/Smallcaps Map View 76x50 Zoom Use 0% Tactical HUD 1 Map Filters NONE Filters NONE Steam 1 RUN: b247f671-67b6-4249-8db9-4ab5488a9932